[Event "XXII Obert Internacional d'Escacs Sant Marti 2022"]
[Site "Barcelona, Spain"]
[Date "2022.07.16"]
[Round "4.6"]
[White "Pimpalkhare, Vedant"]
[Black "D`costa, Lorin"]
[Result "1/2-1/2"]
[TimeControl "1.30 fb 30"]
[WhiteElo "2057"]
[BlackElo "2372"]

1. d4 {[%clk 01:30:55]} {[%emt 00:00:04]} Nf6 {[%clk 01:26:35]} {[%emt
00:04:24]} 2. Nf3 {[%clk 01:31:17]} {[%emt 00:00:08]} b6 {[%clk 01:26:11]}
{[%emt 00:00:55]} 3. e3 {[%clk 01:30:13]} {[%emt 00:01:35]} Bb7 {[%clk
01:25:23]} {[%emt 00:01:17]} 4. c4 {[%clk 01:29:33]} {[%emt 00:01:10]} e6
{[%clk 01:23:59]} {[%emt 00:01:54]} 5. Bd3 {[%clk 01:29:34]} {[%emt 00:00:29]}
d5 {[%clk 01:19:04]} {[%emt 00:05:25]} 6. Nbd2 {[%clk 01:28:30]} {[%emt
00:01:35]} Nbd7 {[%clk 01:13:23]} {[%emt 00:06:09]} 7. O-O {[%emt 00:00:49]}
Be7 {[%clk 01:09:33]} {[%emt 00:04:18]} 8. b3 {[%clk 01:27:58]} {[%emt
00:00:46]} O-O {[%clk 01:09:28]} {[%emt 00:00:34]} 9. Bb2 {[%clk 01:28:05]}
{[%emt 00:00:23]} c5 {[%clk 01:08:56]} {[%emt 00:01:02]} 10. Qe2 {[%clk
01:18:54]} {[%emt 00:09:42]} Rc8 {[%clk 01:00:44]} {[%emt 00:08:42]} 11. Rfd1
{[%clk 01:10:39]} {[%emt 00:08:44]} Rc7 {[%clk 00:52:32]} {[%emt 00:08:43]} 12.
cxd5 {[%clk 01:07:48]} {[%emt 00:03:21]} Nxd5 {[%clk 00:51:34]} {[%emt
00:01:28]} 13. Rac1 {[%clk 01:00:50]} {[%emt 00:07:28]} Qa8 {[%clk 00:44:45]}
{[%emt 00:07:19]} 14. Bb1 {[%clk 00:56:04]} {[%emt 00:05:16]} Rfc8 {[%clk
00:37:34]} {[%emt 00:07:41]} 15. Nc4 {[%clk 00:50:28]} {[%emt 00:06:06]} cxd4
{[%clk 00:16:50]} {[%emt 00:21:14]} 16. Nxd4 {[%clk 00:50:09]} {[%emt
00:00:49]} a6 {[%clk 00:11:40]} {[%emt 00:05:41]} 17. Nxe6 {[%clk 00:35:36]}
{[%emt 00:15:03]} fxe6 {[%clk 00:11:45]} {[%emt 00:00:24]} 18. Qg4 {[%clk
00:36:02]} {[%emt 00:00:03]} N5f6 {[%clk 00:07:20]} {[%emt 00:04:56]} 19. Qxe6+
{[%clk 00:36:05]} {[%emt 00:00:28]} Kf8 {[%clk 00:07:43]} {[%emt 00:00:07]} 20.
Rxd7 {[%clk 00:28:27]} {[%emt 00:08:08]} Rxd7 {[%clk 00:05:06]} {[%emt
00:03:06]} 21. Bxf6 {[%clk 00:28:37]} {[%emt 00:00:20]} Bxf6 {[%clk 00:03:35]}
{[%emt 00:02:01]} 22. Qxd7 {[%clk 00:28:05]} {[%emt 00:01:02]} b5 {[%clk
00:03:34]} {[%emt 00:00:31]} 23. Qd6+ {[%clk 00:20:34]} {[%emt 00:08:01]} Be7
{[%clk 00:03:27]} {[%emt 00:00:37]} 24. Qf4+ {[%clk 00:20:58]} {[%emt
00:00:06]} Bf6 {[%clk 00:03:39]} {[%emt 00:00:18]} 25. Qd6+ {[%clk 00:21:06]}
{[%emt 00:00:23]} Be7 {[%clk 00:03:59]} {[%emt 00:00:10]} 26. Qf4+ {[%clk
00:20:24]} {[%emt 00:01:12]} Bf6 {[%clk 00:04:21]} {[%emt 00:00:08]} 27. Qd6+
{[%clk 00:19:40]} {[%emt 00:01:14]} 1/2-1/2

[Event "XXII Obert Internacional d'Escacs Sant Marti 2022"]
[Site "Barcelona, Spain"]
[Date "2022.07.16"]
[Round "4.7"]
[White "Canal Oliveras, Joan"]
[Black "Macak, Stefan"]
[Result "0-1"]
[TimeControl "1.30 fb 30"]
[WhiteElo "2149"]
[BlackElo "2363"]

1. e4 {[%clk 01:30:54]} {[%emt 00:00:05]} e6 {[%clk 01:30:47]} {[%emt
00:00:14]} 2. d4 {[%clk 01:31:04]} {[%emt 00:00:19]} d5 {[%clk 01:31:13]}
{[%emt 00:00:05]} 3. Nc3 {[%clk 01:31:19]} {[%emt 00:00:15]} Bb4 {[%clk
01:31:37]} {[%emt 00:00:07]} 4. e5 {[%clk 01:31:30]} {[%emt 00:00:17]} c5
{[%clk 01:31:54]} {[%emt 00:00:14]} 5. a3 {[%clk 01:31:53]} {[%emt 00:00:08]}
Bxc3+ {[%clk 01:32:18]} {[%emt 00:00:06]} 6. bxc3 {[%clk 01:32:17]} {[%emt
00:00:04]} Qa5 {[%clk 01:32:30]} {[%emt 00:00:19]} 7. Bd2 {[%clk 01:30:05]}
{[%emt 00:02:42]} Qa4 {[%clk 01:32:51]} {[%emt 00:00:10]} 8. h4 {[%clk
01:29:13]} {[%emt 00:01:20]} Nc6 {[%clk 01:31:56]} {[%emt 00:01:26]} 9. h5
{[%clk 01:25:27]} {[%emt 00:04:16]} Bd7 {[%clk 01:25:36]} {[%emt 00:06:50]} 10.
h6 {[%clk 01:23:16]} {[%emt 00:02:41]} Nxh6 {[%clk 01:25:15]} {[%emt 00:00:51]}
11. Bxh6 {[%clk 01:23:30]} {[%emt 00:00:15]} gxh6 {[%clk 01:25:42]} {[%emt
00:00:04]} 12. Nf3 {[%clk 01:22:56]} {[%emt 00:01:03]} c4 {[%clk 01:23:28]}
{[%emt 00:02:45]} 13. Rxh6 {[%clk 01:21:24]} {[%emt 00:02:02]} O-O-O {[%clk
01:22:47]} {[%emt 00:01:11]} 14. Ng5 {[%clk 01:21:22]} {[%emt 00:00:31]} Rdf8
{[%clk 01:21:31]} {[%emt 00:01:46]} 15. Rxh7 {[%clk 01:11:49]} {[%emt
00:10:04]} Rxh7 {[%clk 01:13:11]} {[%emt 00:08:50]} 16. Nxh7 {[%clk 01:12:07]}
{[%emt 00:00:11]} Rh8 {[%clk 01:13:24]} {[%emt 00:00:17]} 17. Ng5 {[%clk
01:11:53]} {[%emt 00:00:45]} Be8 {[%clk 01:10:50]} {[%emt 00:03:04]} 18. Kd2
{[%clk 01:04:39]} {[%emt 00:07:44]} Qa5 {[%clk 01:06:10]} {[%emt 00:05:10]} 19.
Qg4 {[%clk 01:00:47]} {[%emt 00:04:21]} Rh1 {[%clk 00:58:14]} {[%emt 00:08:26]}
20. Qf4 {[%clk 01:00:51]} {[%emt 00:00:26]} Qc7 {[%clk 00:51:57]} {[%emt
00:06:47]} 21. g4 {[%clk 00:59:17]} {[%emt 00:02:04]} Qe7 {[%clk 00:46:59]}
{[%emt 00:05:29]} 22. a4 {[%clk 00:52:00]} {[%emt 00:07:47]} Nd8 {[%clk
00:38:06]} {[%emt 00:09:22]} 23. a5 {[%clk 00:47:51]} {[%emt 00:04:40]} Qf8
{[%clk 00:36:10]} {[%emt 00:02:26]} 24. Rd1 {[%clk 00:40:57]} {[%emt 00:07:24]}
Qh6 {[%clk 00:26:29]} {[%emt 00:10:10]} 25. Qe3 {[%clk 00:31:19]} {[%emt
00:10:08]} Rh4 {[%clk 00:21:39]} {[%emt 00:05:20]} 26. Be2 {[%clk 00:30:44]}
{[%emt 00:01:05]} Qg6 {[%clk 00:16:13]} {[%emt 00:05:57]} 27. f4 {[%clk
00:29:48]} {[%emt 00:01:26]} Ba4 {[%clk 00:15:40]} {[%emt 00:01:04]} 28. Rc1
{[%clk 00:28:18]} {[%emt 00:01:59]} Nc6 {[%clk 00:09:52]} {[%emt 00:06:18]} 29.
Qg3 {[%clk 00:26:05]} {[%emt 00:02:43]} Rh8 {[%clk 00:09:52]} {[%emt 00:00:30]}
30. Bd1 {[%clk 00:19:40]} {[%emt 00:06:54]} Nxa5 {[%clk 00:09:27]} {[%emt
00:00:56]} 31. Ra1 {[%clk 00:20:04]} {[%emt 00:00:05]} b5 {[%clk 00:09:50]}
{[%emt 00:00:08]} 32. Ra2 {[%clk 00:20:03]} {[%emt 00:00:31]} Nc6 {[%clk
00:09:29]} {[%emt 00:00:51]} 33. Bf3 {[%clk 00:19:57]} {[%emt 00:00:35]} Kd7
{[%clk 00:08:18]} {[%emt 00:01:42]} 34. Bg2 {[%clk 00:17:54]} {[%emt 00:02:32]}
a5 {[%clk 00:08:05]} {[%emt 00:00:45]} 35. Qe3 {[%clk 00:15:59]} {[%emt
00:02:24]} Rh2 {[%clk 00:07:48]} {[%emt 00:00:47]} 36. Qg3 {[%clk 00:16:04]}
{[%emt 00:00:25]} Rh8 {[%clk 00:07:50]} {[%emt 00:00:27]} 37. Bh3 {[%clk
00:15:49]} {[%emt 00:00:45]} Ne7 {[%clk 00:05:36]} {[%emt 00:02:45]} 38. Qe3
{[%clk 00:16:02]} {[%emt 00:00:16]} Kc6 {[%clk 00:05:05]} {[%emt 00:01:03]} 39.
Bg2 {[%clk 00:11:33]} {[%emt 00:04:58]} Rg8 {[%clk 00:04:28]} {[%emt 00:01:08]}
40. Qh3 {[%clk 00:10:38]} {[%emt 00:01:24]} Kb6 {[%clk 00:04:00]} {[%emt
00:00:58]} 41. Bf3 {[%clk 00:10:20]} {[%emt 00:00:47]} Bb3 {[%clk 00:02:31]}
{[%emt 00:02:01]} 42. Rb2 {[%clk 00:05:50]} {[%emt 00:05:00]} a4 {[%clk
00:02:22]} {[%emt 00:00:38]} 43. Qh5 {[%clk 00:06:15]} {[%emt 00:00:04]} a3
{[%clk 00:01:20]} {[%emt 00:01:32]} 44. Qxg6 {[%clk 00:06:36]} {[%emt
00:00:09]} Nxg6 {[%clk 00:01:04]} {[%emt 00:00:47]} 45. Rb1 {[%clk 00:06:41]}
{[%emt 00:00:26]} Nxf4 {[%clk 00:00:50]} {[%emt 00:00:43]} 46. Nxf7 {[%clk
00:06:28]} {[%emt 00:00:43]} Ba4 {[%clk 00:00:55]} {[%emt 00:00:25]} 47. Ke3
{[%clk 00:03:52]} {[%emt 00:03:05]} Rf8 {[%clk 00:00:41]} {[%emt 00:00:45]} 48.
Ng5 {[%clk 00:03:39]} {[%emt 00:00:42]} Bxc2 {[%clk 00:01:02]} {[%emt
00:00:11]} 49. Ra1 {[%clk 00:04:05]} {[%emt 00:00:03]} Bg6 {[%clk 00:00:32]}
{[%emt 00:01:01]} 50. Rxa3 {[%clk 00:04:25]} {[%emt 00:00:10]} Be8 {[%clk
00:00:32]} {[%emt 00:00:29]} 51. Ra8 {[%clk 00:04:29]} {[%emt 00:00:26]} Kb7
{[%clk 00:00:37]} {[%emt 00:00:26]} 52. Rxe8 {[%clk 00:04:51]} {[%emt
00:00:07]} Rxe8 {[%clk 00:00:51]} {[%emt 00:00:16]} 53. Kxf4 {[%clk 00:05:17]}
{[%emt 00:00:03]} Kb6 {[%clk 00:00:56]} {[%emt 00:00:26]} 54. Nh7 {[%clk
00:03:29]} {[%emt 00:02:17]} Ka5 {[%clk 00:01:03]} {[%emt 00:00:23]} 55. Nf6
{[%clk 00:03:37]} {[%emt 00:00:21]} Re7 {[%clk 00:01:20]} {[%emt 00:00:13]} 56.
Ke3 {[%clk 00:02:04]} {[%emt 00:02:04]} Ka4 {[%clk 00:01:26]} {[%emt 00:00:24]}
57. Bd1+ {[%clk 00:02:26]} {[%emt 00:00:07]} Ka3 {[%clk 00:01:45]} {[%emt
00:00:12]} 58. Bc2 {[%clk 00:01:55]} {[%emt 00:01:00]} Kb2 {[%clk 00:01:27]}
{[%emt 00:00:48]} 59. Kd2 {[%clk 00:02:14]} {[%emt 00:00:11]} Ra7 {[%clk
00:01:02]} {[%emt 00:00:56]} 60. g5 {[%clk 00:02:23]} {[%emt 00:00:21]} Ra1
{[%clk 00:01:13]} {[%emt 00:00:19]} 61. g6 {[%clk 00:01:20]} {[%emt 00:01:33]}
Rg1 {[%clk 00:01:31]} {[%emt 00:00:12]} 62. Nh5 {[%clk 00:00:39]} {[%emt
00:01:11]} Rg2 {[%clk 00:01:43]} {[%emt 00:00:18]} 63. Kd1 {[%clk 00:01:06]}
{[%emt 00:00:04]} Rg1+ {[%clk 00:01:39]} {[%emt 00:00:35]} 64. Kd2 {[%clk
00:01:27]} {[%emt 00:00:08]} Rg2 {[%clk 00:02:06]} {[%emt 00:00:03]} 65. Kd1
{[%clk 00:01:55]} {[%emt 00:00:02]} Rxc2 {[%clk 00:02:18]} {[%emt 00:00:18]} 66.
Nf4 {[%clk 00:01:48]} {[%emt 00:00:37]} Rxc3 {[%clk 00:01:47]} {[%emt
00:01:01]} 67. Nxe6 {[%clk 00:02:01]} {[%emt 00:00:16]} Rg3 {[%clk 00:01:41]}
{[%emt 00:00:36]} 68. Nf4 {[%clk 00:01:47]} {[%emt 00:00:45]} c3 {[%emt
00:00:38]} 0-1

[Event "XXII Obert Internacional d'Escacs Sant Marti 2022"]
[Site "Barcelona, Spain"]
[Date "2022.07.16"]
[Round "4.8"]
[White "Bottazzi, Ulysse"]
[Black "Barbero Sendic, Alejandro"]
[Result "0-1"]
[TimeControl "1.30 fb 30"]
[WhiteElo "2140"]
[BlackElo "2326"]

1. e4 {[%clk 01:30:07]} {[%emt 00:00:52]} e5 {[%clk 01:28:17]} {[%emt
00:02:43]} 2. Nf3 {[%clk 01:30:21]} {[%emt 00:00:16]} Nc6 {[%clk 01:28:32]}
{[%emt 00:00:15]} 3. Bb5 {[%clk 01:30:44]} {[%emt 00:00:07]} a6 {[%clk
01:28:50]} {[%emt 00:00:13]} 4. Ba4 {[%clk 01:31:06]} {[%emt 00:00:06]} d6
{[%clk 01:29:00]} {[%emt 00:00:22]} 5. Bxc6+ {[%clk 01:28:53]} {[%emt
00:02:41]} bxc6 {[%clk 01:29:27]} {[%emt 00:00:05]} 6. d4 {[%clk 01:29:11]}
{[%emt 00:00:12]} exd4 {[%clk 01:29:48]} {[%emt 00:00:08]} 7. Qxd4 {[%clk
01:29:20]} {[%emt 00:00:22]} c5 {[%clk 01:24:28]} {[%emt 00:05:50]} 8. Qd3
{[%clk 01:29:44]} {[%emt 00:00:05]} Be7 {[%clk 01:19:36]} {[%emt 00:05:23]} 9.
O-O {[%clk 01:29:53]} {[%emt 00:00:21]} Nf6 {[%clk 01:19:52]} {[%emt 00:00:14]}
10. e5 {[%clk 01:29:43]} {[%emt 00:00:40]} dxe5 {[%clk 01:17:31]} {[%emt
00:02:51]} 11. Qxd8+ {[%clk 01:30:05]} {[%emt 00:00:08]} Bxd8 {[%clk 01:17:57]}
{[%emt 00:00:05]} 12. Nxe5 {[%clk 01:30:27]} {[%emt 00:00:07]} Bb7 {[%clk
01:18:16]} {[%emt 00:00:12]} 13. Nc3 {[%clk 01:27:12]} {[%emt 00:03:45]} O-O
{[%clk 01:18:03]} {[%emt 00:00:41]} 14. Re1 {[%clk 01:16:24]} {[%emt 00:11:19]}
Re8 {[%clk 01:17:21]} {[%emt 00:01:12]} 15. Bf4 {[%clk 01:15:02]} {[%emt
00:01:52]} Be7 {[%clk 01:16:20]} {[%emt 00:01:32]} 16. Nc4 {[%clk 01:00:05]}
{[%emt 00:15:27]} Nd5 {[%clk 01:14:11]} {[%emt 00:02:40]} 17. Nxd5 {[%clk
00:58:46]} {[%emt 00:01:48]} Bxd5 {[%clk 01:14:31]} {[%emt 00:00:10]} 18. Ne3
{[%clk 00:55:04]} {[%emt 00:04:12]} c6 {[%clk 01:04:53]} {[%emt 00:10:08]} 19.
Nxd5 {[%clk 00:41:17]} {[%emt 00:14:18]} cxd5 {[%clk 01:05:12]} {[%emt
00:00:12]} 20. Re5 {[%clk 00:41:24]} {[%emt 00:00:22]} Bf6 {[%clk 01:05:32]}
{[%emt 00:00:10]} 21. Rxd5 {[%clk 00:41:07]} {[%emt 00:00:47]} Bxb2 {[%clk
01:05:43]} {[%emt 00:00:18]} 22. Rad1 {[%clk 00:41:08]} {[%emt 00:00:29]} c4
{[%clk 01:04:04]} {[%emt 00:02:10]} 23. g4 {[%clk 00:36:56]} {[%emt 00:04:41]}
h6 {[%clk 01:03:57]} {[%emt 00:00:37]} 24. Kg2 {[%clk 00:36:32]} {[%emt
00:00:54]} Re2 {[%clk 00:53:13]} {[%emt 00:11:14]} 25. Rd8+ {[%clk 00:35:31]}
{[%emt 00:01:31]} Rxd8 {[%clk 00:53:40]} {[%emt 00:00:04]} 26. Rxd8+ {[%clk
00:35:53]} {[%emt 00:00:06]} Kh7 {[%clk 00:54:03]} {[%emt 00:00:07]} 27. Rd2
{[%clk 00:36:16]} {[%emt 00:00:06]} Re4 {[%clk 00:54:25]} {[%emt 00:00:08]} 28.
Bg3 {[%clk 00:25:32]} {[%emt 00:11:15]} c3 {[%clk 00:35:37]} {[%emt 00:19:19]}
29. Rd7 {[%clk 00:18:42]} {[%emt 00:07:19]} f6 {[%clk 00:35:25]} {[%emt
00:00:42]} 30. Kf3 {[%clk 00:11:52]} {[%emt 00:07:21]} Ra4 {[%clk 00:35:45]}
{[%emt 00:00:11]} 31. Ke3 {[%clk 00:04:19]} {[%emt 00:08:02]} Rxa2 {[%clk
00:35:32]} {[%emt 00:00:43]} 32. Bd6 {[%clk 00:04:26]} {[%emt 00:00:23]} Kg8
{[%clk 00:32:44]} {[%emt 00:03:17]} 33. Ke4 {[%clk 00:04:14]} {[%emt 00:00:42]}
Ra4+ {[%clk 00:28:30]} {[%emt 00:04:45]} 34. Kf5 {[%clk 00:03:48]} {[%emt
00:00:55]} Rd4 {[%clk 00:27:05]} {[%emt 00:01:55]} 35. Rd8+ {[%clk 00:01:09]}
{[%emt 00:03:10]} Kh7 {[%clk 00:27:17]} {[%emt 00:00:18]} 36. Be7 {[%clk
00:01:09]} {[%emt 00:00:30]} Rd2 {[%clk 00:26:26]} {[%emt 00:01:21]} 37. f4
{[%clk 00:01:24]} {[%emt 00:00:15]} Ba3 {[%clk 00:24:35]} {[%emt 00:02:22]} 38.
g5 {[%clk 00:00:51]} {[%emt 00:01:02]} hxg5 {[%clk 00:23:54]} {[%emt 00:01:10]}
39. fxg5 {[%clk 00:01:10]} {[%emt 00:00:12]} Rf2+ {[%clk 00:23:57]} {[%emt
00:00:27]} 40. Ke6 {[%clk 00:01:08]} {[%emt 00:00:32]} Re2+ {[%clk 00:24:20]}
{[%emt 00:00:07]} 41. Kf5 {[%clk 00:01:33]} {[%emt 00:00:05]} Re5+ {[%clk
00:24:44]} {[%emt 00:00:05]} 0-1

[Event "XXII Obert Internacional d'Escacs Sant Marti 2022"]
[Site "Barcelona, Spain"]
[Date "2022.07.16"]
[Round "4.9"]
[White "Millaret Lores, Francesc"]
[Black "Fernandez Diaz, Cristian"]
[Result "1/2-1/2"]
[TimeControl "1.30 fb 30"]
[WhiteElo "2106"]
[BlackElo "2318"]

1. e4 {[%clk 01:30:54]} {[%emt 00:00:05]} d6 {[%clk 01:29:05]} {[%emt
00:01:56]} 2. d4 {[%clk 01:31:09]} {[%emt 00:00:15]} Nf6 {[%clk 01:29:27]}
{[%emt 00:00:08]} 3. Nc3 {[%clk 01:31:29]} {[%emt 00:00:11]} g6 {[%clk
01:29:50]} {[%emt 00:00:06]} 4. Bc4 {[%clk 01:30:15]} {[%emt 00:01:44]} Bg7
{[%clk 01:29:52]} {[%emt 00:00:27]} 5. Nf3 {[%clk 01:30:30]} {[%emt 00:00:17]}
O-O {[%clk 01:30:06]} {[%emt 00:00:15]} 6. O-O {[%clk 01:30:43]} {[%emt
00:00:17]} Nxe4 {[%clk 01:30:14]} {[%emt 00:00:21]} 7. Nxe4 {[%clk 01:30:42]}
{[%emt 00:00:31]} d5 {[%clk 01:30:38]} {[%emt 00:00:06]} 8. Bd3 {[%clk
01:30:53]} {[%emt 00:00:19]} dxe4 {[%clk 01:30:58]} {[%emt 00:00:09]} 9. Bxe4
{[%clk 01:31:21]} {[%emt 00:00:03]} Nd7 {[%clk 01:31:18]} {[%emt 00:00:10]} 10.
c3 {[%clk 01:25:44]} {[%emt 00:06:07]} c5 {[%clk 01:30:55]} {[%emt 00:00:54]}
11. Qe2 {[%clk 01:21:27]} {[%emt 00:04:47]} cxd4 {[%clk 01:29:06]} {[%emt
00:02:18]} 12. Nxd4 {[%clk 01:21:29]} {[%emt 00:00:29]} Nc5 {[%clk 01:29:18]}
{[%emt 00:00:18]} 13. Bc2 {[%clk 01:20:22]} {[%emt 00:01:37]} e5 {[%clk
01:17:32]} {[%emt 00:12:15]} 14. Nb3 {[%clk 01:15:05]} {[%emt 00:05:48]} Ne6
{[%clk 01:16:24]} {[%emt 00:01:37]} 15. Rd1 {[%clk 01:14:41]} {[%emt 00:00:55]}
Qc7 {[%clk 01:14:52]} {[%emt 00:02:01]} 16. Be3 {[%clk 01:12:40]} {[%emt
00:02:32]} f5 {[%clk 01:09:05]} {[%emt 00:06:16]} 17. f3 {[%clk 01:11:48]}
{[%emt 00:01:23]} Kh8 {[%clk 00:58:47]} {[%emt 00:10:47]} 18. Qb5 {[%clk
01:02:01]} {[%emt 00:10:17]} a6 {[%clk 00:30:55]} {[%emt 00:28:22]} 19. Qb6
{[%clk 01:01:21]} {[%emt 00:01:10]} Re8 {[%clk 00:26:16]} {[%emt 00:05:09]} 20.
Qxc7 {[%clk 00:56:47]} {[%emt 00:05:04]} Nxc7 {[%clk 00:26:45]} 21. Bb6 {[%clk
00:57:09]} {[%emt 00:00:09]} Ne6 {[%clk 00:26:59]} {[%emt 00:00:16]} 22. Na5
{[%clk 00:54:15]} {[%emt 00:03:23]} Bf6 {[%clk 00:19:14]} {[%emt 00:08:15]} 23.
Nc4 {[%clk 00:47:33]} {[%emt 00:07:12]} Kg7 {[%clk 00:11:50]} {[%emt 00:07:54]}
24. Ba4 {[%clk 00:40:21]} {[%emt 00:07:42]} Re7 {[%clk 00:09:50]} {[%emt
00:02:31]} 25. Nd6 {[%clk 00:35:18]} {[%emt 00:05:33]} Kf8 {[%clk 00:05:45]}
{[%emt 00:04:35]} 26. Nc4 {[%clk 00:31:59]} {[%emt 00:03:48]} Kg7 {[%clk
00:05:40]} {[%emt 00:00:35]} 27. Kf2 {[%clk 00:31:02]} {[%emt 00:01:28]} h5
{[%clk 00:05:56]} {[%emt 00:00:13]} 28. g3 {[%clk 00:30:45]} {[%emt 00:00:47]}
h4 {[%clk 00:05:30]} {[%emt 00:00:57]} 29. Rd5 {[%clk 00:28:51]} {[%emt
00:02:24]} Nc7 {[%clk 00:04:08]} {[%emt 00:01:52]} 30. Rd6 {[%clk 00:28:07]}
{[%emt 00:01:12]} Be6 {[%clk 00:03:59]} {[%emt 00:00:40]} 31. Ne3 {[%clk
00:24:38]} {[%emt 00:03:59]} Rc8 {[%clk 00:03:27]} {[%emt 00:01:02]} 32. a3
{[%clk 00:21:42]} {[%emt 00:03:26]} hxg3+ {[%clk 00:03:38]} {[%emt 00:00:19]}
33. hxg3 {[%clk 00:22:04]} {[%emt 00:00:08]} Nb5 {[%clk 00:03:06]} {[%emt
00:01:02]} 34. Bxb5 {[%clk 00:20:26]} {[%emt 00:02:08]} axb5 {[%clk 00:03:33]}
{[%emt 00:00:04]} 35. Nd5 {[%clk 00:16:41]} {[%emt 00:04:15]} Rd7 {[%clk
00:03:37]} {[%emt 00:00:26]} 36. Rxd7+ {[%clk 00:16:35]} {[%emt 00:00:35]} Bxd7
{[%clk 00:04:06]} {[%emt 00:00:02]} 37. Nxf6 {[%clk 00:16:12]} {[%emt
00:00:53]} Kxf6 {[%clk 00:04:35]} {[%emt 00:00:01]} 38. f4 {[%clk 00:14:44]}
{[%emt 00:01:57]} Bc6 {[%clk 00:04:24]} {[%emt 00:00:41]} 39. Re1 {[%clk
00:14:39]} {[%emt 00:00:35]} Be4 {[%clk 00:04:32]} {[%emt 00:00:22]} 40. Rd1
{[%clk 00:13:48]} {[%emt 00:01:20]} Rc6 {[%clk 00:03:40]} {[%emt 00:01:23]} 41.
Bd8+ {[%clk 00:13:30]} {[%emt 00:00:49]} Ke6 {[%clk 00:03:55]} {[%emt
00:00:15]} 42. Ke3 {[%clk 00:13:14]} {[%emt 00:00:46]} Rc8 {[%clk 00:03:38]}
{[%emt 00:00:47]} 43. fxe5 {[%clk 00:12:09]} {[%emt 00:01:35]} Kxe5 {[%clk
00:03:50]} {[%emt 00:00:18]} 44. Bg5 {[%clk 00:12:26]} {[%emt 00:00:12]} Bd5
{[%clk 00:02:59]} {[%emt 00:01:20]} 45. Bf4+ {[%clk 00:12:05]} {[%emt
00:00:52]} Ke6 {[%clk 00:03:29]} 46. Rd4 {[%clk 00:11:40]} {[%emt 00:00:55]}
Rh8 {[%clk 00:03:20]} {[%emt 00:00:38]} 47. Rd2 {[%clk 00:10:43]} {[%emt
00:01:27]} Rh5 {[%clk 00:02:18]} {[%emt 00:01:32]} 48. Kd4 {[%clk 00:10:24]}
{[%emt 00:00:49]} g5 {[%clk 00:01:58]} {[%emt 00:00:51]} 49. Re2+ {[%clk
00:10:24]} {[%emt 00:00:30]} Be4 {[%clk 00:02:03]} {[%emt 00:00:24]} 50. Bd2
{[%clk 00:09:29]} {[%emt 00:01:25]} Rh3 {[%clk 00:01:38]} {[%emt 00:00:55]} 51.
Bxg5 {[%clk 00:09:05]} {[%emt 00:00:55]} Rxg3 {[%clk 00:02:06]} {[%emt
00:00:01]} 52. Be3 {[%clk 00:08:58]} {[%emt 00:00:37]} Rg8 {[%clk 00:01:27]}
{[%emt 00:01:09]} 53. Bf4 {[%clk 00:07:50]} {[%emt 00:01:38]} Rg4 {[%clk
00:01:17]} {[%emt 00:00:40]} 54. Rf2 {[%clk 00:07:46]} {[%emt 00:00:34]} Bc6
{[%clk 00:01:11]} {[%emt 00:00:36]} 55. Kc5 {[%clk 00:07:27]} {[%emt 00:00:50]}
Kf6 {[%clk 00:01:00]} {[%emt 00:00:41]} 56. Kd6 {[%clk 00:07:09]} {[%emt
00:00:48]} Rg1 {[%clk 00:01:02]} {[%emt 00:00:27]} 57. Rh2 {[%clk 00:07:00]}
{[%emt 00:00:39]} Rd1+ {[%clk 00:01:03]} {[%emt 00:00:29]} 58. Rd2 {[%clk
00:06:27]} {[%emt 00:01:03]} Rf1 {[%clk 00:01:17]} {[%emt 00:00:16]} 59. Rd4
{[%clk 00:06:09]} {[%emt 00:00:48]} Rf2 {[%clk 00:01:14]} {[%emt 00:00:32]} 60.
b4 {[%clk 00:04:57]} {[%emt 00:01:43]} Rc2 {[%clk 00:00:47]} {[%emt 00:00:57]}
61. Rd2 {[%clk 00:04:48]} {[%emt 00:00:40]} Rc1 {[%clk 00:00:46]} {[%emt
00:00:30]} 62. Rh2 {[%clk 00:04:52]} {[%emt 00:00:26]} Rd1+ {[%clk 00:00:41]}
{[%emt 00:00:36]} 63. Rd2 {[%clk 00:05:20]} {[%emt 00:00:02]} Rf1 {[%clk
00:00:59]} {[%emt 00:00:07]} 64. Rd4 {[%clk 00:04:44]} {[%emt 00:01:10]} Rf3
{[%clk 00:00:42]} {[%emt 00:00:47]} 65. Bd2 {[%clk 00:04:04]} {[%emt 00:01:10]}
Rf2 {[%clk 00:00:42]} {[%emt 00:00:29]} 66. Bf4 {[%clk 00:04:19]} {[%emt
00:00:16]} Re2 {[%clk 00:00:50]} {[%emt 00:00:22]} 67. Rd2 {[%clk 00:03:58]}
{[%emt 00:00:51]} Re1 {[%clk 00:00:54]} {[%emt 00:00:26]} 68. Rh2 {[%clk
00:04:00]} {[%emt 00:00:28]} Re4 {[%clk 00:01:06]} {[%emt 00:00:17]} 69. Rh6
{[%clk 00:04:06]} {[%emt 00:00:25]} Kg7 {[%clk 00:01:04]} {[%emt 00:00:32]} 70.
Rh4 {[%clk 00:04:34]} {[%emt 00:00:02]} Re1 {[%clk 00:01:05]} {[%emt 00:00:28]}
71. Rh3 {[%clk 00:03:52]} {[%emt 00:01:13]} Re4 {[%clk 00:00:41]} {[%emt
00:00:54]} 72. Rh4 {[%clk 00:03:40]} {[%emt 00:00:43]} Kf7 {[%clk 00:00:41]}
{[%emt 00:00:29]} 73. Rh7+ {[%clk 00:03:53]} {[%emt 00:00:17]} Kg8 {[%clk
00:01:10]} 74. Rh4 {[%clk 00:04:15]} {[%emt 00:00:09]} Kf7 {[%clk 00:00:33]}
{[%emt 00:01:07]} 75. Rh7+ {[%clk 00:04:42]} {[%emt 00:00:02]} Kg8 {[%clk
00:00:33]} {[%emt 00:00:30]} 76. Rh4 {[%clk 00:05:10]} {[%emt 00:00:02]} Re1
{[%clk 00:00:37]} {[%emt 00:00:26]} 77. Be5 {[%clk 00:05:00]} {[%emt 00:00:41]}
Rh1 {[%clk 00:00:34]} {[%emt 00:00:33]} 78. Rxh1 {[%clk 00:05:12]} {[%emt
00:00:18]} Bxh1 {[%clk 00:01:02]} 79. Kc5 {[%clk 00:05:10]} {[%emt 00:00:32]}
Bc6 {[%clk 00:01:17]} {[%emt 00:00:14]} 80. c4 {[%clk 00:05:31]} {[%emt
00:00:10]} bxc4 {[%clk 00:01:33]} {[%emt 00:00:15]} 81. b5 {[%clk 00:05:46]}
{[%emt 00:00:14]} Be4 {[%clk 00:01:41]} {[%emt 00:00:21]} 82. Kxc4 {[%clk
00:06:14]} {[%emt 00:00:03]} Kf7 {[%clk 00:01:58]} {[%emt 00:00:13]} 83. a4
{[%clk 00:06:29]} {[%emt 00:00:16]} Ke6 {[%clk 00:00:41]} {[%emt 00:01:46]}
1/2-1/2